[Event "4NCL 2021-22"]
[Site "England"]
[Date "2022.05.01"]
[Round "8.9"]
[White "Kanyamarala, Tarun"]
[Black "Shirov, Alexei"]
[Result "0-1"]
[ECO "D02"]
[WhiteElo "2321"]
[BlackElo "2691"]
[Annotator "TA"]
[PlyCount "86"]
[EventDate "2021.11.27"]
[EventType "team-tourn"]
[EventCountry "ENG"]
[SourceTitle "playchess.com"]
[Source "ChessBase"]
[SourceQuality "1"]
[TimeControl "40/6000+30:3000+30"]

{[%evp 9,86,-12,15,6,15,10,0,8,0,-27,-29,-26,-23,-23,-25,-26,-14,-35,-34,-25,-28,-25,-28,-79,-15,-52,-58,-58,-65,-54,-56,-66,-59,-74,-58,-62,-48,-81,-79,-76,-50,-58,-58,-58,-61,-52,-50,-51,-49,-56,-49,-49,-49,-95,-58,-136,-145,-158,-158,-155,-154,-154,-151,-145,-139,-164,-169,-312,-312,-470,-466,-501,-501,-474,-470,-29981,-29982,-29981,-29982]} 1. d4 {[%emt 0:00:04]} d5 {[%emt 0:17:11]} 2. Nf3 {[%emt 0:00:13]} Nf6 {[%emt 0:00:12]} 3. Bf4 {[%emt 0:00:08]} c5 {[%emt 0:00:21]} 4. e3 {[%emt 0:00:06]} Nc6 {[%emt 0:00:26]} 5. Nbd2 {[%emt 0:00:08]} cxd4 {[%emt 0:08:30]} 6. exd4 {[%emt 0:00:22] D02: 1 d4 d5 2 Nf3 sidelines, including 2...Nf6 3 g3 and 2...Nf6 3 Bf4.} Bf5 {[%emt 0:00:06]} 7. Bb5 {[%emt 0:00:53]} Qb6 {[%emt 0:12:20]} 8. c4 {[%emt 0:11:08] The position is equal.} dxc4 {[%emt 0:01:10]} 9. Qa4 {[%emt 0:10:26]} a6 {[%emt 0:01:21]} 10. Bxc6+ {[%emt 0:00:16] [#]} (10. Bxc4 Qxb2 11. O-O b5 $17) 10... bxc6 $146 {[%emt 0:09:29]} ({Predecessor:} 10... Qxc6 11. Qxc6+ bxc6 12. Nxc4 Nd5 13. Bg3 f6 14. O-O g5 15. Rfe1 Kf7 16. Na5 h5 {0-1 (33) Skoberne,J (2544)-Nisipeanu,L (2673) Austria 2018}) 11. Nxc4 {[%emt 0:25:39]} Qb5 {[%emt 0:00:14]} 12. Qb3 {[%emt 0:00:29]} Nd5 {[%emt 0:00:20]} 13. Bg3 {[%emt 0:04:24]} g6 {[%emt 0:03:38]} 14. O-O {[%emt 0:07:02]} Bh6 {[%emt 0:00:39]} 15. Rfe1 {[%emt 0:06:36] Hoping for Nd6+.} O-O {[%emt 0:00:38]} 16. Nfd2 {[%emt 0:06:28]} (16. Ne3 $11) 16... a5 {[%emt 0:11:41]} (16... Rfd8 $17) 17. Ne3 {[%emt 0:21:26] Pair of Knights!} Be6 {[%emt 0:03:35]} 18. Nxd5 {[%emt 0:01:15]} Bxd5 {[%emt 0:00:30]} 19. Qc3 {[%emt 0:00:46]} Ra7 {[%emt 0:04:14][%cal Ba8a7,Ba7b7,Bb7b3][%mdl 32]} 20. Nf1 {[%emt 0:07:37]} Rb7 {[%emt 0:00:06] Black is more active.} 21. Ne3 {[%emt 0:01:01]} Be6 {[%emt 0:02:38]} 22. b3 {[%emt 0:00:43]} a4 {[%emt 0:01:52]} 23. Rec1 {[%emt 0:02:59]} axb3 {[%emt 0:08:58]} (23... Rc8 {is interesting.} 24. bxa4 Qxa4 25. Rd1 Rd8) 24. axb3 {[%emt 0:00:02]} Qxb3 {[%emt 0:00:08]} ({Of course not} 24... Bxb3 25. Rcb1 $14) (24... Rc8 {feels hotter.} 25. Ra3 Qb6 26. Rb1 Qb4) 25. Qxb3 {[%emt 0:01:41]} Rxb3 {[%emt 0:00:05]} (25... Bxb3 {looks sharper.} 26. Rab1 Ra8 27. Rxc6 f6) 26. Rxc6 {[%emt 0:00:21]} Bxe3 {[%emt 0:00:08]} 27. fxe3 {[%emt 0:00:07]} Rxe3 {[%emt 0:00:03]} 28. Rc7 {[%emt 0:01:17]} Bd5 {[%emt 0:05:25]} 29. Re1 {[%emt 0:00:02] Against Re2} Rxe1+ {[%emt 0:00:07]} 30. Bxe1 $15 {[%emt 0:00:02][%mdl 4096] Endgame KRB-KRB} e6 {[%emt 0:00:06]} 31. Bg3 {[%emt 0:01:35]} (31. Bd2 $15 {is more appropriate.}) 31... f6 {[%emt 0:03:14]} 32. Ra7 {[%emt 0:00:02]} ({White should try} 32. Bd6 $15 Rb8 33. Rg7+ Kxg7 34. Bxb8) 32... Rc8 $17 {[%emt 0:00:32]} 33. Bc7 {[%emt 0:00:09] [#]} g5 $1 {[%emt 0:00:06]} 34. g3 {[%emt 0:01:12]} Kf7 {[%emt 0:00:35]} 35. Kf2 {[%emt 0:00:18]} Kg6 {[%emt 0:00:07]} 36. Ke3 {[%emt 0:00:37]} h5 {[%emt 0:01:06]} 37. Kd3 {[%emt 0:00:42]} Kf5 {[%emt 0:00:08]} 38. Ke3 {[%emt 0:00:12] [#]} (38. Bd6 $142) 38... Kg4 $1 $19 {[%emt 0:01:26]} 39. Kf2 {[%emt 0:00:11]} (39. Ke2 $142) 39... Kh3 {[%emt 0:02:13]} 40. Kg1 {[%emt 0:00:19]} f5 {[%emt 0:00:59][%cal Bf6f5,Bf5g4][%mdl 32]} 41. Kf2 {[%emt 0:10:45]} Kxh2 {[%emt 0:01:37][%cal Of5f4] Threatens to win with ...f4!} 42. g4+ {[%emt 0:00:29] [#]} (42. Bd6 $19 Rc2+ 43. Ke1) 42... Rxc7 $1 {[%emt 0:01:05]} 43. Rxc7 {[%emt 0:00:06]} fxg4 {[%emt 0:00:03] Weighted Error Value: White=0.43/Black=0.07 (flawless)} 0-1